bitfinex/quotes_SOLUSD_20250908
["timestamp","ask_amount","ask_price","bid_price","bid_amount"]
[1757342025622,0.06,214.99,214.98,42.27159549]
[1757342026009,0.72,215.08,215.01,26.0]
[1757342026318,0.72,215.08,215.05,26.0]
[1757342026509,0.72,215.08,215.06,36.88]
[1757342026921,4.6492166,215.09,215.06,36.88]
[1757342027125,0.72,215.07,215.06,36.88]
[1757342027300,0.72,215.07,215.01,26.72]
[1757342027707,0.72,215.07,215.05,26.0]
[1757342027920,5.36964895,215.07,215.06,36.88]
[1757342028415,35.09047877,215.07,215.06,36.88]
[1757342029331,13.59559401,215.06,214.93,5.37267761]
[1757342029519,4.50111344,215.03,214.94,0.72]
[1757342029717,0.72,215.02,214.94,0.72]
[1757342029921,0.72,215.02,214.96,26.0]
[1757342030121,9.1520599,215.01,214.89,11.63340198]
[1757342030343,9.1520599,215.01,214.85,43.30192726]
[1757342030344,4.50111344,214.97,214.88,0.72]
[1757342030639,4.50111344,214.95,214.89,36.88]
[1757342030809,0.72,214.94,214.92,26.0]
[1757342031008,16.27831262,215.01,214.93,36.88]
[1757342031232,13.59559401,215.0,214.93,36.88]
[1757342031531,0.72,214.99,214.93,36.88]
[1757342031732,0.72,214.98,214.93,36.88]
[1757342032040,0.72,214.97,214.93,36.88]
[1757342032331,15.95133724,214.96,214.93,36.88]
[1757342032625,24.17490297,214.94,214.85,0.03]
[1757342032839,24.17490297,214.91,214.86,36.9]
[1757342033137,10.57930896,214.89,214.86,36.9]
[1757342033339,10.57930896,214.91,214.86,36.9]
[1757342033546,10.57930896,214.92,214.86,36.9]
[1757342033842,0.72,214.91,214.86,36.9]
[1757342034346,4.65267761,214.93,214.89,26.0]
[1757342034518,5.37267761,214.93,214.9,36.94]
[1757342035024,4.652479,214.94,214.9,36.94]
[1757342035945,0.72,214.98,214.93,26.0]
[1757342036122,0.72,214.98,214.94,36.94]
[1757342036324,0.72,215.01,214.95,36.92]
[1757342036522,4.65116279,215.0,214.96,36.92]
[1757342037040,13.59559401,215.01,214.96,36.92]
[1757342037211,5.37092761,215.02,214.96,36.92]
[1757342037507,18.24610465,215.04,214.99,26.0]
[1757342037705,18.24610465,215.04,215.0,36.92]
[1757342037908,18.96610465,215.04,215.0,36.92]
[1757342038113,4.65051064,215.04,215.0,36.92]
[1757342039032,5.37051064,215.04,215.0,36.92]
[1757342039416,0.72,215.03,215.0,36.92]
[1757342040017,0.72,215.02,214.94,26.0]
[1757342040216,4.65094646,215.01,214.98,26.0]
[1757342040419,5.37094646,215.01,214.99,36.92]
[1757342041109,4.65051325,215.04,215.0,0.72]
[1757342041310,4.65051325,215.04,214.99,36.92]
[1757342041535,4.65051325,215.04,214.99,37.64]
[1757342041733,4.65051325,215.04,215.0,0.72]
[1757342042238,11.62481906,215.06,214.99,36.92]
[1757342042239,4.65008137,215.05,214.99,36.92]
[1757342042836,0.72,215.06,214.99,41.60130577]
[1757342043039,0.72,215.08,215.02,26.0]
[1757342043334,0.06,215.07,215.03,36.9]
[1757342043512,0.78,215.07,215.03,36.9]
[1757342044434,4.64986515,215.06,215.03,36.9]
[1757342044618,0.06,215.07,215.03,36.9]
[1757342045123,0.06,215.07,215.03,37.62]
[1757342045325,0.06,215.07,215.04,0.72]
[1757342045521,0.06,215.07,215.05,0.72]
[1757342045741,0.06,215.07,215.06,36.86]
[1757342047036,0.77,215.07,215.06,36.86]
[1757342048830,5.41964895,215.07,215.06,36.86]
[1757342049743,4.70964895,215.07,215.06,36.86]
[1757342049949,5.41964895,215.07,215.06,36.86]
[1757342050130,0.06,215.07,215.06,36.86]
[1757342050530,0.77,215.07,215.06,36.86]
[1757342051833,0.77,215.07,215.06,36.8]
[1757342052034,14.36559401,215.07,215.06,36.8]
[1757342052237,19.01524296,215.07,215.06,36.8]
[1757342052430,13.59559401,215.06,214.99,0.75]
[1757342052631,13.59559401,215.06,215.0,36.8]
[1757342052847,0.71,215.05,214.99,0.75]
[1757342053056,0.71,215.05,215.01,36.8]
[1757342053269,13.59559401,215.06,215.01,36.8]
[1757342053433,0.71,215.05,215.01,36.8]
[1757342053634,0.71,215.04,215.01,36.8]
[1757342053833,0.71,215.03,214.99,0.03]
[1757342054059,5.36051388,215.03,214.99,0.03]
[1757342054257,16.27679858,215.03,214.99,0.03]
[1757342054464,0.71,215.02,215.0,36.78]
[1757342054635,0.71,215.02,214.99,0.03]
[1757342055034,16.27679858,215.03,215.0,36.76]
[1757342055534,4.65051388,215.03,215.0,37.48]
[1757342055935,11.62589309,215.04,215.0,36.76]
[1757342056144,12.33589309,215.04,215.01,36.76]
[1757342057341,11.62589309,215.04,215.01,36.76]
[1757342058441,4.64989497,215.06,215.02,0.72]
[1757342058770,4.64989497,215.06,215.03,0.72]
[1757342059062,4.64989497,215.06,215.01,37.48]
[1757342059267,4.64989497,215.06,215.02,0.72]
[1757342060138,4.64989497,215.06,215.03,0.72]
[1757342060336,72.96,215.07,215.04,26.72]
[1757342060548,0.06,215.07,215.05,0.72]
[1757342060755,0.06,215.07,215.06,37.46]
[1757342064555,0.06,215.07,215.06,42.10986515]
[1757342065159,0.06,215.07,215.06,37.46]
[1757342065762,0.06,215.07,215.06,26.72]
[1757342065961,0.06,215.07,215.06,63.42]
[1757342066162,0.06,215.07,215.06,63.4]
[1757342066377,0.06,215.07,215.06,26.0]
[1757342066865,0.06,215.07,215.06,62.68]
[1757342067074,0.06,215.07,215.04,0.72]
[1757342067252,0.06,215.07,215.05,36.68]
[1757342067762,0.06,215.07,215.01,4.65092702]
[1757342067763,0.06,215.07,215.06,36.68]
[1757342068853,0.06,215.07,215.06,37.4]
[1757342069853,0.06,215.07,215.06,26.72]
[1757342070059,0.06,215.07,215.06,37.42]
[1757342071371,0.06,215.07,215.06,42.06986515]
[1757342072658,0.06,215.07,215.06,42.04986515]
[1757342073159,0.06,215.07,215.06,37.4]
[1757342074970,0.06,215.07,215.06,37.36]
[1757342076074,0.06,215.07,215.06,42.00986515]
[1757342076378,0.06,215.07,215.05,26.0]
[1757342076583,0.06,215.07,215.06,36.64]
[1757342076760,0.06,215.07,215.06,41.97986515]
[1757342078075,0.06,215.07,215.06,36.64]
[1757342078661,0.06,215.07,215.06,37.33]
[1757342078980,0.06,215.07,215.06,41.97986515]
[1757342080872,4.64576074,215.25,215.1,26.0]
[1757342081177,4.64576074,215.25,215.14,26.0]
[1757342081366,4.64576074,215.25,215.18,26.0]
[1757342081564,5.36576074,215.25,215.19,36.76]
[1757342081768,23.22229415,215.32,215.19,36.76]
[1757342081958,8.82790168,215.31,215.22,26.0]
[1757342082282,0.72,215.32,215.26,26.0]
[1757342082479,0.72,215.32,215.27,36.84]
[1757342082682,7.5183217,215.35,215.28,36.84]
[1757342082865,0.72,215.34,215.29,36.84]
[1757342083067,0.72,215.33,215.3,36.84]
[1757342083260,0.72,215.32,215.31,36.82]
[1757342083970,3.59469967,215.32,215.23,26.0]
[1757342084164,0.72,215.31,215.27,26.0]
[1757342084362,0.72,215.31,215.28,36.82]
[1757342084780,13.59559401,215.4,215.28,36.82]
[1757342084962,0.72,215.33,215.28,36.82]
[1757342085157,0.06,215.32,215.28,37.51]
[1757342085364,0.78,215.32,215.28,36.82]
[1757342086283,0.06,215.32,215.28,36.82]
[1757342086475,0.78,215.32,215.28,36.82]
[1757342086666,0.06,215.32,215.28,36.82]
[1757342087483,7.78464952,215.31,215.24,3.67876583]
[1757342087687,0.72,215.31,215.28,26.0]
[1757342087879,0.72,215.3,215.29,36.78]
[1757342088083,0.06,215.32,215.29,36.78]
[1757342088084,0.78,215.32,215.29,36.78]
[1757342088689,0.72,215.31,215.29,36.78]
[1757342088888,12.42933135,215.3,215.21,0.69]
[1757342089190,7.06464952,215.27,215.25,26.0]
[1757342089393,7.06464952,215.28,215.26,36.76]
[1757342089769,16.97638642,215.3,215.18,0.69]
[1757342089770,7.78464952,215.27,215.18,0.69]
[1757342089969,0.72,215.27,215.19,36.76]
[1757342090168,7.06464952,215.24,215.22,26.0]
[1757342090398,0.72,215.27,215.23,36.76]
[1757342090607,7.06464952,215.24,215.23,36.76]
[1757342090766,11.7106261,215.24,215.23,36.76]
[1757342090963,12.4306261,215.24,215.23,36.76]
[1757342091473,11.7106261,215.24,215.23,36.76]
[1757342091668,0.72,215.26,215.23,36.76]
[1757342091889,7.06464952,215.24,215.23,37.36]
[1757342092070,7.06464952,215.25,215.23,37.36]
[1757342092271,5.36487134,215.3,215.23,37.36]
[1757342092496,7.06464952,215.29,215.23,38.05]
[1757342092788,11.71007113,215.27,215.23,37.36]
[1757342092992,0.72,215.29,215.23,36.76]
[1757342093295,7.06464952,215.25,215.23,36.76]
[1757342093489,0.72,215.25,215.23,36.76]
[1757342093690,7.06464952,215.24,215.23,36.76]
[1757342093882,7.78464952,215.24,215.23,36.76]
[1757342094104,0.72,215.26,215.23,36.76]
[1757342094393,0.78,215.32,215.24,0.69]
[1757342094577,0.06,215.32,215.26,26.0]
[1757342094776,0.06,215.32,215.27,36.78]
[1757342095005,0.06,215.32,215.3,26.0]
[1757342095186,0.72,215.31,215.23,0.69]
[1757342095382,0.72,215.31,215.24,62.78]
[1757342095584,7.12464952,215.32,215.27,26.0]
[1757342095812,7.06464952,215.31,215.28,36.8]
[1757342095987,7.78464952,215.31,215.28,36.8]
[1757342096293,7.06464952,215.3,215.28,36.8]
[1757342096492,7.78464952,215.29,215.2,26.0]
[1757342096698,7.06464952,215.29,215.24,26.0]
[1757342096894,16.2556314,215.31,215.25,36.8]
[1757342097109,7.06464952,215.27,215.17,13.93760599]
[1757342097288,0.72,215.3,215.21,26.69]
[1757342097483,7.06464952,215.25,215.17,13.93760599]
[1757342097686,7.06464952,215.23,215.18,0.69]
[1757342097891,16.2556314,215.31,215.18,0.69]
[1757342097892,13.59559401,215.29,215.19,36.8]
[1757342098107,0.72,215.28,215.19,37.3]
[1757342098309,7.06464952,215.23,215.19,36.8]
[1757342098494,0.72,215.27,215.16,3.80662375]
[1757342098495,0.72,215.22,215.16,3.80662375]
[1757342098736,0.72,215.22,215.15,34.15]
[1757342098896,4.64662422,215.21,215.16,36.8]
[1757342099098,7.06464952,215.19,215.18,26.0]
[1757342099419,4.64662422,215.21,215.16,36.8]
[1757342099717,7.06464952,215.23,215.19,26.0]
[1757342099920,13.59559401,215.3,215.19,26.0]
[1757342100221,0.72,215.29,215.2,36.82]
[1757342100417,7.06464952,215.23,215.2,36.82]
[1757342100724,7.06464952,215.21,215.15,34.15]
[1757342101014,12.33471048,215.25,215.16,37.53]
[1757342101223,4.64597658,215.24,215.17,0.69]
[1757342101409,4.64597658,215.24,215.16,36.84]
[1757342101410,7.06464952,215.21,215.16,36.84]
[1757342101586,4.64597658,215.24,215.19,26.0]
[1757342101787,7.06464952,215.23,215.2,36.84]
[1757342102629,11.7106261,215.24,215.2,36.84]
[1757342102812,4.64597658,215.24,215.2,36.84]
[1757342103015,5.36489758,215.29,215.23,26.0]
[1757342103215,4.64489758,215.29,215.24,36.84]
[1757342103411,4.64466691,215.31,215.24,36.84]
[1757342103637,7.06464952,215.3,215.24,37.53]
[1757342103839,4.70427928,215.32,215.27,26.0]
[1757342104021,0.06,215.32,215.28,37.53]
[1757342104225,0.06,215.32,215.29,0.69]
[1757342104542,0.06,215.32,215.31,26.0]
[1757342104846,18.27491079,215.41,215.31,26.0]
[1757342105028,22.91738569,215.41,215.35,26.0]
[1757342105230,15.85273617,215.41,215.36,36.88]
[1757342105430,15.85273617,215.41,215.31,26.0]
[1757342105631,7.06464952,215.33,215.32,36.88]
[1757342106129,0.7,215.35,215.32,36.88]
[1757342106319,48.11875473,215.41,215.32,36.88]
[1757342106519,7.06464952,215.39,215.32,36.88]
[1757342106818,27.4585112,215.41,215.22,34.09559401]
[1757342106819,7.06464952,215.35,215.28,0.68]
[1757342107024,11.70846859,215.34,215.29,36.9]
[1757342107229,7.06464952,215.33,215.29,36.9]
[1757342107437,5.34381907,215.34,215.25,7.74464952]
[1757342107438,7.06464952,215.31,215.25,7.74464952]
[1757342107630,7.06464952,215.3,215.26,36.92]
[1757342107816,0.06,215.29,215.26,36.92]
[1757342108441,0.06,215.29,215.27,0.68]
[1757342108935,7.06464952,215.39,215.28,31.32511334]
[1757342109122,4.64266054,215.4,215.28,31.32511334]
[1757342109123,7.06464952,215.4,215.29,0.68]
[1757342109322,7.06464952,215.39,215.33,26.0]
[1757342109522,7.06464952,215.39,215.34,36.94]
[1757342109726,7.76464952,215.38,215.34,36.94]
[1757342110341,7.06464952,215.36,215.28,26.0]
[1757342110634,16.2488415,215.4,215.27,0.68]
[1757342110635,7.06464952,215.32,215.27,0.68]
[1757342110816,7.06464952,215.32,215.28,62.92]
[1757342111139,11.70899229,215.32,215.28,62.92]
[1757342111334,12.30903763,215.35,215.28,62.92]
[1757342111335,0.7,215.35,215.28,62.92]
[1757342111537,7.06464952,215.31,215.28,62.92]
[1757342112042,7.06464952,215.3,215.29,36.92]
[1757342112414,7.76464952,215.3,215.29,36.92]
[1757342113042,12.40933135,215.3,215.29,36.92]
[1757342113421,24.02103594,215.3,215.22,0.5]
[1757342113623,24.02103594,215.3,215.23,36.9]
[1757342113624,7.06464952,215.26,215.23,36.9]
[1757342113929,7.06464952,215.27,215.23,36.9]
[1757342114245,7.76464952,215.26,215.25,26.0]
[1757342114550,10.54999978,215.27,215.26,26.0]
[1757342114719,10.54999978,215.27,215.26,62.9]
[1757342114919,15.19528684,215.28,215.26,62.9]
[1757342115128,4.64528706,215.28,215.26,62.9]
[1757342115344,15.19528684,215.28,215.26,62.9]
[1757342115546,15.89528684,215.28,215.26,62.9]
[1757342115743,4.64528706,215.28,215.26,62.9]
[1757342116052,11.24999978,215.27,215.26,62.9]
[1757342116239,4.64425041,215.32,215.26,62.9]
[1757342116444,0.7,215.3,215.26,62.9]
[1757342116645,4.64425041,215.32,215.26,62.9]
[1757342116646,10.54999978,215.31,215.26,62.9]
[1757342116840,0.7,215.32,215.26,63.58]
[1757342117047,11.24999978,215.32,215.26,63.58]
[1757342117236,0.7,215.38,215.27,0.68]
[1757342117437,11.24999978,215.38,215.27,0.68]
[1757342117843,10.54999978,215.39,215.28,13.93048687]
[1757342118055,15.19279018,215.39,215.32,26.0]
[1757342118361,11.21026127,215.41,215.36,26.0]
[1757342118653,21.76026105,215.41,215.37,62.92]
[1757342118855,11.21026127,215.41,215.37,62.92]
[1757342119360,11.21026127,215.41,215.4,26.0]
[1757342120439,11.21026127,215.41,215.4,26.68]
[1757342120657,11.21026127,215.41,215.4,37.62]
[1757342120956,11.21026127,215.41,215.4,42.26252553]
[1757342121552,11.21026127,215.41,215.4,59.62303791]
[1757342121732,0.1582366,215.43,215.42,26.0]
[1757342122161,0.1582366,215.43,215.42,26.68]
[1757342122357,0.1582366,215.43,215.42,31.32209451]
[1757342122546,0.1582366,215.43,215.42,44.91768852]
[1757342123370,1e-08,215.43,215.42,44.91768852]
[1757342124353,1e-08,215.43,215.42,81.87768852]
[1757342124951,1e-08,215.43,215.42,31.32209451]
[1757342125154,1e-08,215.43,215.42,68.28209451]
[1757342125456,0.7,215.59,215.46,26.0]
[1757342125657,0.7,215.64,215.5,26.0]
[1757342125837,20.0,215.75,215.54,26.0]
[1757342125838,0.7,215.66,215.54,26.0]
[1757342126037,0.7,215.66,215.58,26.0]
[1757342126242,4.63671349,215.67,215.62,25.5]
[1757342126443,0.7,215.66,215.62,25.5]
[1757342126663,0.7,215.65,215.63,37.02]
[1757342126959,16.22849723,215.67,215.55,33.4]
[1757342126960,11.24999978,215.64,215.55,33.4]
[1757342127252,0.7,215.64,215.55,34.08]
[1757342127446,0.7,215.64,215.56,37.04]
[1757342127447,11.24999978,215.64,215.56,37.04]
[1757342127648,0.7,215.66,215.57,37.04]
[1757342127849,10.54999978,215.65,215.57,37.04]
[1757342128041,16.22849723,215.67,215.55,33.4]
[1757342128042,16.22849723,215.67,215.58,37.04]
[1757342128357,10.54999978,215.6,215.59,37.06]
[1757342128561,0.7,215.64,215.59,37.06]
[1757342128774,4.63714351,215.65,215.6,0.68]
[1757342128960,23.17379112,215.77,215.6,0.68]
[1757342128961,4.63689231,215.67,215.63,26.0]
[1757342129146,4.63689231,215.67,215.64,37.16]
[1757342129340,4.63647789,215.69,215.67,26.0]
[1757342129550,4.63647789,215.69,215.68,37.16]
[1757342129841,4.63647789,215.69,215.58,26.68]
[1757342129842,15.88647767,215.69,215.58,26.68]
[1757342130046,0.7,215.68,215.62,26.0]
[1757342130252,16.23226045,215.62,215.48,0.68]
[1757342130442,16.23226045,215.62,215.49,37.88]
[1757342130646,10.54999978,215.61,215.5,12.14]
[1757342130842,16.23226045,215.62,215.5,12.14]
[1757342131065,10.54999978,215.6,215.5,12.14]
[1757342131365,0.7,215.61,215.5,12.14]
[1757342131366,11.24999978,215.61,215.53,26.0]
[1757342131547,10.54999978,215.61,215.57,26.0]
[1757342131741,4.6377887,215.62,215.61,26.0]
[1757342131942,27.48226023,215.62,215.61,37.22]
[1757342132346,11.24999978,215.62,215.61,37.22]
[1757342132551,0.7,215.62,215.52,0.68]
[1757342132760,16.2330133,215.61,215.56,26.0]
[1757342133058,16.2330133,215.61,215.57,37.26]
[1757342133059,0.7,215.6,215.57,37.26]
[1757342133262,10.54999978,215.58,215.57,37.26]
[1757342133557,4.6380038,215.61,215.57,37.26]
[1757342133768,11.24999978,215.6,215.57,37.26]
[1757342133956,10.54999978,215.62,215.6,26.0]
[1757342134160,10.54999978,215.62,215.61,37.24]
[1757342134343,5.3377887,215.62,215.59,26.0]
[1757342134543,16.23226045,215.62,215.61,37.26]
[1757342134966,16.93226045,215.62,215.61,37.26]
[1757342135658,15.88778848,215.62,215.61,37.26]
[1757342135850,5.3377887,215.62,215.61,37.26]
[1757342136154,11.59308171,215.65,215.61,37.26]
[1757342136155,10.54999978,215.63,215.61,37.26]
[1757342136344,13.59559401,215.69,215.47,53.4]
[1757342136345,15.89778848,215.62,215.51,0.71]
[1757342136543,10.54999978,215.58,215.55,26.0]
[1757342137044,10.54999978,215.59,215.58,26.0]
[1757342137447,10.54999978,215.6,215.59,26.0]
[1757342137773,11.25999978,215.6,215.56,37.3]
[1757342137965,0.71,215.6,215.59,26.0]
[1757342138466,0.71,215.65,215.59,26.0]
[1757342138648,16.22172784,215.76,215.6,37.28]
[1757342138850,13.59559401,215.75,215.6,37.28]
[1757342139063,13.59559401,215.69,215.61,37.3]
[1757342139269,10.54999978,215.62,215.52,0.71]
[1757342139468,10.54999978,215.59,215.52,0.71]
[1757342139656,10.54999978,215.62,215.56,26.0]
[1757342139842,10.54999978,215.63,215.6,26.0]
[1757342140046,0.71,215.62,215.61,37.3]
[1757342140250,5.3477887,215.62,215.61,37.3]
[1757342140451,5.3477887,215.62,215.5,26.0]
[1757342140651,0.71,215.61,215.54,26.0]
[1757342141073,16.23226045,215.62,215.55,37.3]
[1757342141376,10.54999978,215.61,215.55,37.3]
[1757342141553,10.54999978,215.6,215.55,37.3]
[1757342141754,0.71,215.59,215.56,37.3]
[1757342141954,16.94226045,215.62,215.56,37.3]
[1757342142162,10.54999978,215.61,215.56,37.3]
[1757342142357,11.59313084,215.65,215.56,37.3]
[1757342142558,5.34735856,215.64,215.59,26.0]
[1757342142752,0.71,215.64,215.6,37.3]
[1757342143154,0.71,215.63,215.62,26.0]
[1757342143755,11.25999978,215.63,215.62,26.0]
[1757342143956,11.25999978,215.63,215.6,37.3]
[1757342144169,0.71,215.62,215.6,37.3]
[1757342144460,4.63821892,215.6,215.54,26.0]
[1757342144664,4.63821892,215.6,215.55,37.28]
[1757342144871,11.25999978,215.59,215.52,0.71]
[1757342145173,10.54999978,215.54,215.46,0.71]
[1757342145361,10.54999978,215.53,215.48,37.28]
[1757342145561,10.54999978,215.53,215.48,37.99]
[1757342146172,11.25999978,215.52,215.44,0.71]
[1757342146475,13.59559401,215.59,215.41,0.71]
[1757342146476,15.19058635,215.49,215.41,0.71]
[1757342146684,11.25999978,215.48,215.37,0.71]
[1757342146979,11.25999978,215.48,215.33,3.78476688]
[1757342147178,10.54999978,215.41,215.34,38.03]
[1757342147962,13.59559401,215.48,215.31,33.38]
[1757342147963,10.54999978,215.39,215.32,0.71]
[1757342148268,10.54999978,215.39,215.31,33.38]
[1757342148269,10.54999978,215.39,215.35,37.34]
[1757342148479,10.54999978,215.37,215.35,37.34]
[1757342148670,13.59559401,215.44,215.35,37.34]
[1757342148671,0.71,215.41,215.35,37.34]
[1757342148871,10.54999978,215.39,215.35,37.34]
[1757342149270,11.25999978,215.39,215.35,37.34]
[1757342149771,10.54999978,215.38,215.35,37.34]
[1757342149966,15.19300532,215.38,215.35,37.34]
[1757342150666,4.63862856,215.54,215.35,37.34]
[1757342150879,0.71,215.45,215.38,26.0]
[1757342151071,10.54999978,215.44,215.38,26.0]
[1757342151480,13.59559401,215.48,215.38,26.0]
[1757342151481,10.54999978,215.46,215.38,26.0]
[1757342151787,10.54999978,215.47,215.38,26.71]
[1757342152081,4.6411284,215.47,215.39,4.64274107]
[1757342152383,15.19112818,215.47,215.43,26.0]
[1757342152578,11.25999978,215.46,215.43,26.0]
[1757342153161,4.6411284,215.47,215.43,26.0]
[1757342153367,15.19112818,215.47,215.43,26.0]
[1757342153981,11.25999978,215.46,215.43,26.0]
[1757342154179,15.1913692,215.46,215.43,26.0]
[1757342154375,10.54999978,215.45,215.43,26.0]
[1757342154585,11.25999978,215.45,215.43,26.0]
[1757342154780,11.25999978,215.44,215.39,26.0]
[1757342154989,10.54999978,215.41,215.4,37.38]
[1757342155291,11.25999978,215.41,215.4,37.38]
[1757342156292,15.90230979,215.41,215.4,37.38]
[1757342156583,29.4979038,215.41,215.4,37.38]
[1757342156786,13.59559401,215.4,215.31,33.38]
[1757342157085,0.71,215.44,215.32,0.71]
[1757342157464,10.54999978,215.39,215.34,26.0]
[1757342157662,10.54999978,215.37,215.34,26.0]
[1757342157888,10.54999978,215.37,215.35,37.62]
[1757342158281,0.71,215.44,215.35,38.33]
[1757342158462,10.54999978,215.41,215.35,38.33]
[1757342158666,0.71,215.44,215.35,38.33]
[1757342158873,10.54999978,215.41,215.35,38.33]
[1757342159068,10.54999978,215.4,215.35,37.62]
[1757342159268,10.54999978,215.38,215.35,37.62]
[1757342159483,53.04424114,215.47,215.35,37.62]
[1757342159484,10.54999978,215.37,215.35,37.62]
[1757342159791,10.54999978,215.39,215.35,37.62]
[1757342159967,0.71,215.42,215.35,37.62]
[1757342160168,10.54999978,215.39,215.35,37.62]
[1757342160671,10.54999978,215.44,215.38,26.0]
[1757342160866,4.63929482,215.55,215.39,0.71]
[1757342161070,10.54999978,215.49,215.43,26.0]
[1757342161273,10.54999978,215.5,215.44,0.71]
[1757342161485,10.54999978,215.5,215.45,37.82]
[1757342161800,0.71,215.49,215.46,37.8]
[1757342161977,0.71,215.49,215.47,37.8]
[1757342162283,4.6401559,215.51,215.47,37.8]
[1757342162872,0.71,215.56,215.47,38.51]
[1757342163084,0.71,215.59,215.5,26.0]
[1757342163392,10.54999978,215.57,215.5,26.0]
[1757342163578,0.71,215.62,215.51,0.71]
[1757342163774,0.71,215.62,215.55,26.0]
[1757342163970,10.54999978,215.61,215.55,26.0]
[1757342164170,10.54999978,215.6,215.55,26.0]
[1757342164374,4.6380038,215.61,215.55,26.0]
[1757342164694,10.54999978,215.6,215.56,26.0]
[1757342164882,0.71,215.62,215.57,37.96]
[1757342164883,5.34779028,215.62,215.57,37.96]
[1757342165074,10.54999978,215.6,215.57,37.96]
[1757342165272,10.54999978,215.59,215.57,37.96]
[1757342165669,0.68,215.59,215.57,37.96]
[1757342165888,10.54999978,215.58,215.57,37.96]
[1757342166080,10.54999978,215.58,215.57,38.06]
[1757342166768,0.06,215.63,215.57,38.06]
[1757342166963,5.37765429,215.63,215.57,38.06]
[1757342167170,10.54999978,215.59,215.57,38.06]
[1757342167375,11.22999978,215.58,215.57,38.06]
[1757342167787,10.54999978,215.58,215.57,38.06]
[1757342168093,0.68,215.62,215.57,38.06]
[1757342168279,15.188649,215.58,215.57,38.06]
[1757342168673,11.59571158,215.6,215.57,38.06]
[1757342168674,4.63836262,215.6,215.57,38.06]
[1757342168886,10.54999978,215.58,215.57,38.06]
[1757342169397,11.22999978,215.58,215.48,26.0]
[1757342169584,10.54999978,215.55,215.52,26.0]
[1757342169787,0.68,215.58,215.52,26.0]
[1757342170283,10.54999978,215.54,215.52,26.0]
[1757342170480,4.63970445,215.54,215.52,26.0]
[1757342170675,4.6393099,215.55,215.52,26.0]
[1757342170878,4.63907378,215.57,215.53,38.08]
[1757342171076,10.54999978,215.56,215.53,38.08]
[1757342171270,15.18907356,215.57,215.53,38.08]
[1757342171494,10.54999978,215.56,215.53,38.08]
[1757342171699,0.06,215.63,215.56,26.0]
[1757342171877,0.06,215.63,215.6,26.0]
[1757342172082,0.06,215.63,215.61,38.14]
[1757342172477,0.06,215.63,215.62,38.3]
[1757342172478,10.60999978,215.63,215.62,38.3]
[1757342172797,15.2475734,215.63,215.62,38.3]
[1757342172988,0.06,215.63,215.62,38.3]
[1757342173488,4.69757362,215.63,215.62,38.3]
[1757342173876,15.2475734,215.63,215.62,38.3]
[1757342174091,4.69757362,215.63,215.62,38.3]
[1757342174287,27.52150745,215.63,215.62,38.28]
[1757342174976,26.84150745,215.63,215.62,38.28]
[1757342176389,11.74398542,215.63,215.62,38.28]